Cogmind - Beta 10.1 @@@ ROGUE MODE // 2020.10.24 @ 01:55:07 Player: W_W Result: Destroyed by as-73338 with Assembled Rifle Performance ------------- Evolutions (0) 0 Regions Visited (2) 400 Robots Destroyed (47) 235 Value Destroyed (580) 580 Prototype IDs (2) 40 Alien Tech Used (0) 0 Bonus (0) 0 TOTAL SCORE: 1255 Bonus ------- None Cogmind --------- Core Integrity 0/250 Matter 209/300 Energy 98/100 System Corruption 0% Temperature Cool (0) Movement Treading (180) Ox1 Location -10/Mines Parts ------- > --- POWER (1) -------- (None) > --- PROPULSION (2) --- Light Treads Improved Treads > --- UTILITY (2) ------ High-capacity Storage Unit High-capacity Storage Unit > --- WEAPON (2) ------- Autogun Autogun > --- INVENTORY (20) --- Light Ion Engine High-capacity Storage Unit Large Matter Pod (150) Signal Interpreter Transport Network Coupler Utility Shielding Hacking Suite Particle Gun Beam Cannon Light Assault Rifle Autogun Light Cannon Mining Laser Peak State ------------ > --- POWER ------------ (None) > --- PROPULSION ------- Light Treads Improved Treads > --- UTILITY ---------- High-capacity Storage Unit High-capacity Storage Unit > --- WEAPON ----------- Autogun Autogun > --- INVENTORY -------- Light Ion Engine High-capacity Storage Unit Large Matter Pod Signal Interpreter Transport Network Coupler Utility Shielding Hacking Suite Beam Cannon Light Assault Rifle Autogun Light Cannon Mining Laser [Rating: 10] Favorites ----------- Power Ion Engine Engine Ion Engine Propulsion Light Treads Treads Light Treads Utility High-capacity Storage Unit Storage High-capacity Storage Unit Weapon Medium Laser Energy Gun Medium Laser Ballistic Gun Light Assault Rifle Ballistic Cannon Light Cannon Launcher Grenade Launcher Build | -11 -10 -10 ------- Run | Scr Mat Min Slots Evolved . | . . . Power . | . . . Propulsion . | . . . Utility . | . . . Weapon . | . . . Parts Attached 25 | 6 11 8 Power 1 | 1 . . Engine 1 | 1 . . Core . | . . . Reactor . | . . . Propulsion 5 | 2 1 2 Treads 5 | 2 1 2 Leg . | . . . Wheel . | . . . Hover . | . . . Flight . | . . . Utility 6 | 1 5 . Device . | . . . Storage 6 | 1 5 . Processor . | . . . Hackware . | . . . Protection . | . . . Artifact . | . . . Weapon 13 | 2 5 6 Energy Gun 5 | 2 3 . Energy Cannon . | . . . Ballistic Gun 4 | . 2 2 Ballistic Cannon 2 | . . 2 Launcher 2 | . . 2 Special Weapon . | . . . Impact Weapon . | . . . Slashing Weapon . | . . . Piercing Weapon . | . . . Special Melee Weapon . | . . . Unidentified Prototypes . | . . . Parts Lost 10 | . 2 8 Power 1 | . . 1 Propulsion 2 | . . 2 Utility . | . . . Weapon 7 | . 2 5 Highest Loss Streak 8 | . 1 8 Average Slot Usage (%) 97 | . 99 93 Engine 13 | . 14 11 Treads 27 | . 28 25 Storage 27 | . 27 28 Energy Gun 17 | . 19 10 Ballistic Gun 9 | . 7 15 Naked Turns . | . . . Heaviest Build 72 | 13 72 72 Greatest Support 43 | 40 40 43 Greatest Overweight (x) 3 | 1 3 1 Average Overweight (x) . | . . 1 Largest Inventory Capacity 20 | 6 20 20 Average Capacity 14 | 5 14 20 Most Carried 19 | 5 19 19 Average Carried 12 | 4 12 17 Final Capacity 20 | 6 20 20 Final Carried 19 | 5 19 13 Class Distribution -------------------- 55% | Hauler-Mutant 44% | Mutant Dominant Class ---------------- Hauler-Mutant | -10/Materials Hauler-Mutant | -10/Mines Resources | -11 -10 -10 ----------- Run | Scr Mat Min Matter Collected 671 | 276 234 161 Remotely . | . . . Salvage Created 1168 | 305 820 43 Parts 90 | 35 53 2 Haulers Intercepted 2 | . 2 . Recyclers Shooed 4 | 1 2 1 Parts Field Recycled . | . . . Retrieved Matter . | . . . Parts Self-Destructed . | . . . Prevented . | . . . Kills | -11 -10 -10 ------- Run | Scr Mat Min Combat Hostiles Destroyed 18 | . 14 4 Guns 13 | . 10 3 Cannons 1 | . . 1 AOE 4 | . 4 . Classes Destroyed 11 | 3 5 3 Worker 8 | 4 3 1 Builder 1 | . . 1 Tunneler 9 | 9 . . Hauler 2 | . 2 . Recycler 4 | 1 3 . Operator 2 | . 2 . Watcher 3 | . 3 . Swarmer 9 | . 9 . Grunt 5 | . 5 . Demolisher 2 | . . 2 Assembled 2 | . . 2 Best Kill Streak 6 | 5 6 5 Combat Bots Only 6 | . 6 3 Max Kills in Single Turn 3 | 2 3 1 Gunslinging . | . . . Exploded 3 | . 3 . Melee . | . . . Uniques/NPCs Destroyed . | . . . Combat | -11 -10 -10 -------- Run | Scr Mat Min Damage Taken 1504 | . 441 1063 Core 254 | . 62 192 Absorbed by Shields . | . . . Core Remaining (%) 100 | 100 . . Volleys Fired 128 | 31 74 23 Largest 2 | 2 2 2 Hottest 100 | 100 100 70 Shots Fired 244 | 62 142 40 Gun 230 | 62 142 26 Cannon 13 | . . 13 Launcher 1 | . . 1 Special . | . . . Kinetic 56 | . 17 39 Thermal 147 | 62 85 . Explosive 1 | . . 1 Electromagnetic 40 | . 40 . Robot Hit Streak 13 | 6 13 6 Robot Miss Streak 4 | 3 4 3 Penetration Max . | . . . Secondary Targets 6 | . 5 1 Max Gunslinging Chain 1 | . 1 1 Shots Hit Robots 141 | 32 86 23 Core Hits 68 | 15 41 12 Critical Hits . | . . . Critical Kills . | . . . Critical Parts Destroyed . | . . . Melee Attacks . | . . . Impact . | . . . Slashing . | . . . Piercing . | . . . Sneak Attacks . | . . . Combat Hostiles . | . . . Follow-up Attacks . | . . . Damage Inflicted 2252 | 410 1487 355 Guns 1651 | 410 1013 228 Cannons 105 | . . 105 Explosions 482 | . 460 22 Melee . | . . . Ramming 14 | . 14 . Kinetic 392 | . 59 333 Thermal 1250 | 410 840 . Explosive 318 | . 296 22 Electromagnetic 278 | . 278 . Impact . | . . . Slashing . | . . . Piercing . | . . . Highest Corruption . | . . . Average Corruption . | . . . Corruption Purged . | . . . Overload Shots . | . . . Overflow Damage 21 | . 18 3 Projectiles 3 | . . 3 Explosions 18 | . 18 . Melee . | . . . Knockbacks 1 | . . 1 Impact . | . . . Kinetic 1 | . . 1 Secondary . | . . . Self-Inflicted Damage 24 | . 8 16 Shots 2 | . 1 1 Rammed 2 | . 2 . Targets Rammed 2 | . 2 . Kicked . | . . . Crushed . | . . . Highest Temperature 390 | 375 390 32 Average Temperature 99 | 115 93 17 Received Heat Transfer 188 | . 108 80 Effects 4 | 1 3 . Shutdowns 1 | 1 . . Interference 2 | . 2 . Matter Decay 1 | . 1 . Siege Activations . | . . . Robots Corrupted . | . . . Combat Hostiles . | . . . Parts Fried 2 | . 2 . Impact Corruptions . | . . . Robots Melted . | . . . Combat Hostiles . | . . . Parts Melted 7 | 2 5 . Heat Transferred 3469 | 1221 2248 . Parts Sabotaged . | . . . Parts Stolen . | . . . Parts Stripped . | . . . Power Chain Reactions 2 | . 2 . Missiles Intercepted . | . . . Alert | -11 -10 -10 ------- Run | Scr Mat Min Peak Influence 226 | 70 226 40 Initial 45 | . 45 24 Average 58 | 35 75 27 Maximum Alert Level 1 | . 1 . Low Security (%) 95 | 100 93 100 Level 1 4 | . 6 . Level 2 . | . . . Level 3 . | . . . Level 4 . | . . . Level 5 . | . . . High Security . | . . . Max Security . | . . . Squads Dispatched 2 | . 2 . Investigation . | . . . Extermination . | . . . Reinforcement 2 | . 2 . Assault . | . . . Garrison . | . . . Intercept . | . . . Construction Impeded . | . . . Haulers Reinforced . | . . . Stealth | -11 -10 -10 --------- Run | Scr Mat Min Distress Signals . | . . . Communications Jammed . | . . . Distress Signals . | . . . Times Spotted 34 | . 21 13 Peak Tracking Total 7 | . 3 7 Tactical Retreats . | . . . Traps | -11 -10 -10 ------- Run | Scr Mat Min Traps Triggered 3 | . 3 . Indirectly . | . . . Trap Hack Attempts . | . . . Triggered . | . . . Disarmed . | . . . Reprogrammed . | . . . Reused . | . . . Traps Extracted . | . . . Installed . | . . . Triggered . | . . . Machines | -11 -10 -10 ---------- Run | Scr Mat Min Machines Disabled 3 | . 3 . Max in Single Turn 2 | . 2 . Machines Sabotaged . | . . . Garrisons Compromised . | . . . Overloaded Fab Kills . | . . . Fab Network Shutdowns . | . . . Hacking | -11 -10 -10 --------- Run | Scr Mat Min Machines Accessed 5 | . 4 1 Terminals 4 | . 3 1 Fabricators . | . . . Repair Stations . | . . . Recycling Units 1 | . 1 . Scanalyzers . | . . . Garrison Access . | . . . Total Hacks 18 | . 15 3 Successful 14 | . 11 3 Failed 4 | . 4 . Catastrophic 1 | . 1 . Database Lockouts . | . . . Manual . | . . . Terminals 17 | . 14 3 Fabricators . | . . . Repair Stations . | . . . Recycling Units 1 | . 1 . Scanalyzers . | . . . Garrison Access . | . . . Terminal Hacks 13 | . 10 3 Record 3 | . . 3 Prototype ID Bank 1 | . 1 . Branch Access Points 1 | . 1 . Scanalyzer Index 1 | . 1 . Unreport Threat 1 | . 1 . Locate Traps 2 | . 2 . Dispatch Records 2 | . 2 . Transport Status 2 | . 2 . Fabricator Hacks . | . . . Repair Station Hacks . | . . . Recycling Unit Hacks 1 | . 1 . Report Inventory 1 | . 1 . Scanalyzer . | . . . Garrison Access Hacks . | . . . Unauthorized Hacks . | . . . Terminals . | . . . Fabricators . | . . . Repair Stations . | . . . Recycling Units . | . . . Scanalyzers . | . . . Garrison Access . | . . . Data Cores Recovered . | . . . Used . | . . . Hacking Detections 3 | . 3 . Full Trace Events . | . . . Feedback Events . | . . . Feedback Blocked . | . . . Robot Schematics Acquired . | . . . Robots Built . | . . . Matter . | . . . Time . | . . . Total Robot Build Rating . | . . . Part Schematics Acquired . | . . . Parts Built . | . . . Matter . | . . . Time . | . . . Total Part Build Rating . | . . . Parts Repaired . | . . . Time . | . . . Parts Recycled . | . . . Recycled Matter . | . . . Retrieved Matter . | . . . Retrieved Components . | . . . Parts Scanalyzed . | . . . Part Schematics Acquired . | . . . Parts Damaged . | . . . Bothacking | -11 -10 -10 ------------ Run | Scr Mat Min Used RIF Installer . | . . . Robots Hacked . | . . . Non-combat . | . . . Combat . | . . . Robot Hacks Applied . | . . . Relay Couplers Released . | . . . Robots Rewired . | . . . Allies Hacked . | . . . Hacks Repelled . | . . . Allies | -11 -10 -10 -------- Run | Scr Mat Min Total Allies 5 | . . 5 Largest Group 5 | . . 5 Highest-Rated Group 76 | . . 76 Highest-Rated Ally 31 | . . 31 Total Orders . | . . . Ally Attacks 11 | . . 11 Total Damage 87 | . . 87 Kills 2 | . . 2 Allies Corrupted . | . . . Allies Melted . | . . . Intel | -11 -10 -10 ------- Run | Scr Mat Min Robot Analysis Total . | . . . Derelict Logs Recovered . | . . . Drone Launches . | . . . Drone Recoveries . | . . . Exploration | -11 -10 -10 ------------- Run | Scr Mat Min Turns Passed 2252 | 320 1432 500 Spaces Moved 1044 | 138 665 241 Core 10 | 10 . . Treads 1034 | 128 665 241 Legs . | . . . Wheels . | . . . Hover . | . . . Flight . | . . . Fastest Speed 50 | 50 160 180 Average Speed 171 | 153 171 180 Slowest Speed 220 | 160 220 180 Overloaded Moves . | . . . Propulsion Burnouts . | . . . Robots Hopped . | . . . Cave-ins Triggered . | . . . Exploration Rate (%) 50 | 4 79 67 Regions Visited 2 Branch Regions 1 Pre-discovered Areas . | . . . Known Exits Taken 1 | . 1 . Unknown Exits Taken 1 | 1 . . Scrap Searched . | . . . Spaces Dug . | . . . Terrain Destroyed 38 | . 36 2 Melee . | . . . Projectile . | . . . AOE 38 | . 36 2 Terrain Rammed . | . . . Walls Destroyed . | . . . Machines Disabled . | . . . Actions | -11 -10 -10 --------- Run | Scr Mat Min Total 1270 | 181 815 274 Wait 40 | . 39 1 Move 1042 | 137 664 241 Hop . | . . . Pick Up 25 | 6 18 1 Fast Attach 12 | 6 6 . Attach 8 | . 1 7 Detach . | . . . Swap 5 | . 4 1 Drop 8 | 1 7 . Fire 128 | 31 74 23 Melee . | . . . Ram . | . . . Kick . | . . . Crush 2 | . 2 . Escape Stasis . | . . . Rewire . | . . . Trap . | . . . Miscellaneous . | . . . Route ------- -11/Scrapyard -10/Materials (discovered 4 exits: [*Mat x3] / *Min) -10/Mines History --------- Turn | Location | Event 9 | -11/Scrapyard | Discovered new exit (range 16) 321 | -11/Scrapyard | Entered Materials 322 | -10/Materials | Build established: Mutant 634 | -10/Materials | Discovered new exit (range 10) 866 | -10/Materials | Discovered new exit (range 15) 974 | -10/Materials | Discovered new exit (range 16) 1025 | -10/Materials | Identified exit to Mines 1296 | -10/Materials | Build established: Hauler-Mutant 1753 | -10/Materials | Entered Mines 2034 | -10/Mines | Assisted by bots powering up and referring to "LRC-V3" 2122 | -10/Mines | Assembled infested the area 2151 | -10/Mines | Core integrity fell below 50% 2167 | -10/Mines | Core integrity fell below 20% 2204 | -10/Mines | Lost 8 parts (1p2n5w) 2253 | -10/Mines | Destroyed by as-73338 with Assembled Rifle Last Messages --------------- 02199_ The unstable cave ceiling collapses. 02201_ Acquired 1 matter. 02202_ R-06 Scavenger collects Com. Wheel. 02203_ Acquired 86 matter. 02205_ R-06 Scavenger collects Lgt. Ion Engine. 02206_ The unstable cave ceiling collapses. 02207_ Med. Matter Pod crushed. 02207_ Acquired 2 matter. 02208_ R-06 Scavenger collects Heat Sink. 02212_ Acquired Particle Gun. 02218_ U-05 Engineer builds a Wall. 02222_ U-05 Engineer lays Concrete. 02223_ U-05 Engineer builds a Wall. 02223_ Destroyed Asb. F-torch. 02223_ as-43438 destroyed. 02228_ U-05 Engineer builds a Wall. 02228_ Acquired 7 matter. 02230_ The unstable cave ceiling collapses. 02233_ Acquired 19 matter. 02246_ Acquired 5 matter. Map ----- +----------------------------------------------------+ | ????????# # ###????????????????????# | | ????????# # ##??????????????????????? | | ????????# #??????????????????????? | | ????????# ### ##??????????????????????? | | ????????# ## ##???????????????????????# | | ????????## # *% ###???????????????????????# | | ?????????## # = #???????????????????????? | | ??????????###### #???????????????????????? | | ??????????# % #####???????????????????? | | ??????????# ## # ##??????????????????? | | ????????? # ##* ! ##?????????????????? | | ????????###?##### !% ##????????????????? | | ?????????????# # * % #####????????????? | | ?????????????## #????????????? | | ?????????????# ## #????????????? | | ?????????????# #???????????????? | | ?????????????# # #???????????????? | | ?????????????### ##???????????????? | | ??????????????# ##????????????????? | | ??????????????## # ##?????????????????? | | ?????????????#### ### ##??????????????????? | | ????????????## * ##?###???????????????????? | | ????????????# = ##??????????????????????? | | ????????????# ##???????###???????????? | | ????????????# ## #???????????? | | ????????????## @ a ????????? | | ?????????????##% ????????? | | ??????????????# #?????????? | | ?????????????# ##?????????? | | ???????????? *%! = #??????????? | | ?????????? *% ??????????? | | ???????? ## ??????????? | | ??????? ##?# ??????????? | | ??????? #####????# ???????????? | | ???????? #??????????## ???????????? | | ???????? #?????????????#######????????????? | | ?????????##?????????????????????????????????? | | ????????????????????????????????????????????? | | ????????????????????????????????????????????? | | | | | | | | | | | | | | | | | | | | | | | +----------------------------------------------------+ Best States ------------- Heat Dissipation 25 Energy Generation 10 Energy Capacity 250 Matter Stores 300 Matter Capacity 300 Sight Range 16 Terrain Scan Density 10 Evasion (%) 40 Recoil Reduction 2 Item Schematics ----------------- None Robot Schematics ------------------ None Fabricated ------------ Nothing Alien Tech Used ----------------- None Achievements -------------- None Challenges ------------ None Game ------ Seed SpreadBoreBooster Manual? 0 Play Time 00:14:54 Cumulative 42.2 hours Start 2020.10.24 @ 01:42:08 End 2020.10.24 @ 01:55:07 Sessions 1 Manual Loads 0 Difficulty Rogue Special Mode None Game No. 44 Rogue 44 Adventurer 0 Explorer 0 Win Type - Total 0 Types 0/0/0/0/0/0/0/0/0 Lore% 26 Gallery% 26 Achievement% 23 Wizard Run 0 Options --------- ASCII 0 Keyboard 0 Movement Mouse Keybinds 0 Fullscreen 1 Font 18/SmallcapsGlow Map View 76x50 Tactical HUD 1 Map Filters NONE Filters NONE Steam 1 RUN: 54b65064-4632-4b14-b64e-e3490f615163